fUSD/lending_fUSD_20250818
["ID","MTS","AMOUNT","RATE_DAILY","PERIOD"]
[380041910,1755499549882,-500.0,0.00036986,120]
[380041911,1755499549939,-1010.0,0.00036986,90]
[380041912,1755499550000,-250.0,0.00037,30]
[380041913,1755499550063,-2700.0,0.00037,60]
[380041914,1755499550125,-500.0,0.00037,60]
[380041915,1755499550187,-7865.96,0.00037,30]
[380041916,1755499550245,-917.0,0.00037,120]
[380041917,1755499550313,-1000.0,0.00037,30]
[380041918,1755499550375,-1800.0,0.00037,38]
[380041919,1755499550434,-1000.0,0.00037,120]
[380041920,1755499550498,-4271.24525883,0.00037,30]
[380041921,1755499550570,-21189.0,0.00037,120]
[380041922,1755499550633,-1709.05,0.00037056,60]
[380041923,1755499550698,-3305.23496,0.00037088,30]
[380041924,1755499550764,-1000.0,0.000371,30]
[380041925,1755499550826,-2228.01,0.00037133,30]
[380041926,1755499550901,-1709.05,0.00037156,60]
[380041927,1755499550975,-1000.0,0.000372,30]
[380041928,1755499551038,-6413.76727857,0.000372,120]
[380041929,1755499551100,-6413.76727854,0.000372,120]
[380041930,1755499551160,-2644.3200401,0.00037212,120]
[380041931,1755499551223,-1709.05,0.00037256,60]
[380041932,1755499551281,-3305.23496,0.00037288,30]
[380041933,1755499551341,-1709.05,0.00037356,60]
[380041934,1755499551403,-280.0,0.000374,30]
[380041935,1755499551465,-1709.05,0.00037456,60]
[380041936,1755499551524,-3305.23496,0.00037488,30]
[380041937,1755499551582,-155.62446592,0.000375,30]
[380041938,1755499551642,-477.0,0.00037507,30]
[380041939,1755499551703,-13927.07,0.00037534,120]
[380041940,1755499551766,-1709.05,0.00037556,60]
[380041941,1755499551827,-1709.05,0.00037656,60]
[380041942,1755499551889,-600.0,0.00037671,120]
[380041943,1755499551953,-3305.23496,0.00037688,30]
[380041944,1755499552020,-1709.05,0.00037756,60]
[380041945,1755499552087,-440.0,0.00037796,120]
[380041946,1755499552156,-557468.08932972,0.000378,30]
[380041947,1755499552222,-5288.99,0.000378,90]
[380041948,1755499552283,-22397.79382738,0.000378,30]
[380041949,1755499552344,-507.85,0.00037808,60]
[380041950,1755499552404,-507.86,0.00037839,80]
[380041951,1755499552465,-1709.05,0.00037856,60]
[380041952,1755499552523,-507.86,0.00037869,100]
[380041953,1755499552582,-186.55364566,0.0003787,120]
[380041954,1755499552645,-3305.23496,0.00037888,30]
[380041955,1755499552706,-507.86,0.000379,120]
[380041956,1755499552765,-11738.07,0.000379,30]
[380041957,1755499552829,-1709.05,0.00037956,60]
[380041958,1755499552891,-3000.0,0.00037984,31]
[380041959,1755499552953,-21665.81092747,0.0003799,120]
[380041960,1755499553025,-550.61095677,0.00037999,120]
[380041961,1755499553087,-2000.0,0.00038,120]
[380041962,1755499553148,-250.0,0.00038,30]
[380041963,1755499553210,-4414.00063648,0.00038,30]
[380041964,1755499553274,-1718.09326994,0.00038,120]
[380041965,1755499553342,-1000.0,0.00038,30]
[380041966,1755499553403,-7865.96,0.00038,30]
[380041967,1755499553465,-500.0,0.00038,120]
[380041968,1755499553528,-1800.0,0.00038,39]
[380041969,1755499553593,-153.0,0.00038,120]
[380041970,1755499553657,-152.0,0.00038,120]
[380041971,1755499553714,-268.18118768,0.00038,120]
[380041972,1755499553773,-1709.05,0.00038056,60]
[380041973,1755499553831,-3305.23496,0.00038088,30]
[380041974,1755499553894,-1000.0,0.000381,30]
[380041975,1755499553959,-1709.05,0.00038156,60]
[380041976,1755499554022,-150.0,0.00038157,120]
[380041977,1755499554086,-302.83497335,0.000382,120]
[380041978,1755499554152,-1000.0,0.000382,30]
[380041979,1755499554215,-1709.05,0.00038256,60]
[380041980,1755499554275,-3305.23496,0.00038288,30]
[380041981,1755499554337,-1000.0,0.000383,30]
[380041982,1755499554400,-1709.05,0.00038356,60]
[380041983,1755499554461,-500.0,0.00038356,120]
[380041984,1755499554523,-206.65283337,0.00038397,30]
[380041985,1755499554584,-50000.0,0.0003843,90]
[380041986,1755499554651,-60000.0,0.0003845,90]
[380041987,1755499554711,-1709.05,0.00038456,120]
[380041988,1755499554803,-3305.23496,0.00038488,30]
[380041989,1755499554882,-1078.71038783,0.000385,120]
[380041990,1755499554942,-500.0,0.000385,120]
[380041991,1755499555002,-510.47025021,0.000385,30]
[380041992,1755499555061,-1374.0,0.000385,60]
[380041993,1755499555121,-1709.05,0.00038556,120]
[380041994,1755499555183,-89000.0,0.00038564,90]
[380041995,1755499555253,-13927.07,0.0003863,120]
[380041996,1755499555326,-1709.05,0.00038656,120]
[380041997,1755499555389,-3305.23496,0.00038688,30]
[380041998,1755499555450,-1709.05,0.00038756,120]
[380041999,1755499555509,-38000.0,0.000388,120]
[380042000,1755499555573,-1690.77,0.00038849,120]
[380042001,1755499555633,-1709.05,0.00038856,120]
[380042002,1755499555692,-5000.0,0.000389,120]
[380042003,1755499555753,-843.49801192,0.000389,120]
[380042004,1755499555813,-152.0,0.000389,120]
[380042005,1755499555878,-361.23662537,0.00038904,90]
[380042006,1755499555939,-1690.77,0.00038949,120]
[380042007,1755499556003,-1709.05,0.00038956,120]
[380042008,1755499556379,-871396.43830535,0.0003898,60]
[380042009,1755499556439,-1230090.67082455,0.0003898,60]
[380042010,1755499556504,-190919.50123894,0.0003898,60]
[380042011,1755499556562,-144530.82391145,0.0003898,60]
[380042012,1755499556618,-364271.79136682,0.0003898,60]
[380042013,1755499556677,-596495.45567675,0.0003898,60]
[380042017,1755499666252,-1395.54695577,0.0003,120]
[380042018,1755499684449,-447.76,9.822e-05,2]
[380042019,1755499684483,-150.0,9.888e-05,2]
[380042020,1755499684518,-254.8592077,9.888e-05,2]
[380042021,1755499684552,-150.0,9.888e-05,2]
[380042022,1755499684585,-150.00000001,9.888e-05,2]
[380042023,1755499684619,-292.06482445,9.888e-05,2]
[380042024,1755499684654,-196.43860886,9.888e-05,2]
[380042025,1755499684687,-250.12521967,9.888e-05,2]
[380042026,1755499684719,-260.97993633,9.968e-05,2]
[380042027,1755499684752,-1200.0,0.00010068,2]
[380042028,1755499684784,-150.0,0.00010068,2]
[380042029,1755499684955,-447.76,0.00010069,2]
[380042030,1755499684976,-150.0,0.00010069,2]
[380042031,1755499685001,-254.8592077,0.00010069,2]
[380042032,1755499685018,-150.0,0.00010069,2]
[380042033,1755499685051,-150.00000001,0.00010069,2]
[380042034,1755499685074,-292.06482445,0.00010069,2]
[380042035,1755499685112,-196.43860886,0.00010069,2]
[380042036,1755499685138,-250.12521967,0.00010069,2]
[380042037,1755499685149,-260.97993633,0.00010069,2]
[380042038,1755499685169,-1200.0,0.00010069,2]
[380042039,1755499685189,-150.0,0.00010069,2]
[380042040,1755499685208,-2995.54440596,0.00010069,2]
[380042041,1755499701125,-2222.22,0.00028367,30]
[380042042,1755499701192,-2222.22,0.0003049,30]
[380042043,1755499701259,-2222.22,0.00032613,30]
[380042044,1755499701321,-1007.95315103,0.00032877,30]
[380042045,1755499701383,-150.0,0.00032877,30]
[380042046,1755499701441,-208.49599756,0.00032877,30]
[380042047,1755499701497,-150.0,0.00032877,30]
[380042048,1755499701555,-956.43744062,0.00032877,30]
[380042049,1755499701613,-3235.04,0.00033,30]
[380042050,1755499702049,-3235.04,0.00034,30]
[380042051,1755499702128,-2222.22,0.00034735,30]
[380042052,1755499702194,-3235.04,0.00035,30]
[380042053,1755499702259,-828.65354066,0.00035959,30]
[380042054,1755499702319,-24602.08816521,0.00036,120]
[380042055,1755499702383,-3235.04,0.00036,30]
[380042056,1755499702457,-828.65354066,0.0003642,30]
[380042057,1755499702515,-828.65354066,0.00036664,30]
[380042058,1755499702582,-828.65354066,0.00036853,30]
[380042059,1755499702814,-2222.22,0.00036858,60]
[380042060,1755499703189,-3235.04,0.00037,30]
[380042061,1755499703561,-828.65354066,0.00037015,30]
[380042064,1755499703900,-6413.76727854,0.000372,120]
[380042065,1755499704046,-6413.76727854,0.000372,120]
[380042066,1755499704114,-6413.76727854,0.000372,120]
[380042067,1755499704227,-280.0,0.000374,30]
[380042068,1755499704353,-828.65354066,0.00037498,30]
[380042069,1755499704428,-828.65354066,0.00037692,30]
[380042070,1755499704494,-828.65354066,0.00037955,30]
[380042071,1755499704561,-3235.04,0.00038,30]
[380042072,1755499704628,-828.65354066,0.00038137,30]
[380042073,1755499704699,-828.65354074,0.00038593,30]
[380042074,1755499704764,-300.0,0.00038687,91]
[380042075,1755499704830,-2582.56,0.000389,60]
[380042076,1755499704896,-150.0,0.00038916,120]
[380042077,1755499704962,-574.65395863,0.00038941,60]
[380042078,1755499705024,-600.0,0.00038979,60]
[380042079,1755499705091,-160.0,0.00038979,60]
[380042080,1755499705162,-600.0,0.00038979,60]
[380042081,1755499705238,-160.0,0.00038979,60]
[380042082,1755499705307,-160.0,0.00038979,60]
[380042083,1755499705386,-600.0,0.00038979,60]
[380042084,1755499705459,-160.0,0.00038979,60]
[380042085,1755499705528,-600.0,0.00038979,60]
[380042086,1755499705595,-600.0,0.00038979,60]
[380042087,1755499705661,-160.0,0.00038979,60]
[380042088,1755499705736,-600.0,0.00038979,60]
[380042089,1755499705797,-600.0,0.00038979,60]
[380042090,1755499705861,-160.0,0.00038979,60]
[380042091,1755499705923,-600.0,0.00038979,60]
[380042092,1755499705990,-600.0,0.00038979,60]
[380042093,1755499706055,-160.0,0.00038979,60]
[380042094,1755499706120,-600.0,0.00038979,60]
[380042095,1755499706186,-600.0,0.00038979,60]
[380042096,1755499706250,-160.0,0.00038979,60]
[380042097,1755499706314,-600.0,0.00038979,60]
[380042098,1755499706392,-600.0,0.00038979,60]
[380042099,1755499706461,-160.0,0.00038979,60]
[380042100,1755499706525,-600.0,0.00038979,60]
[380042101,1755499706588,-160.0,0.00038979,60]
[380042102,1755499706651,-600.0,0.00038979,60]
[380042103,1755499706715,-600.0,0.00038979,60]
[380042104,1755499706783,-160.0,0.00038979,60]
[380042105,1755499706847,-600.0,0.00038979,60]
[380042106,1755499706909,-600.0,0.00038979,60]
[380042107,1755499706973,-160.0,0.00038979,60]
[380042108,1755499707036,-600.0,0.00038979,60]
[380042109,1755499707113,-600.0,0.00038979,60]
[380042110,1755499707195,-160.0,0.00038979,60]
[380042111,1755499707263,-600.0,0.00038979,60]
[380042112,1755499707329,-200.0,0.00038979,60]
[380042113,1755499707394,-600.0,0.00038979,60]
[380042114,1755499707457,-160.0,0.00038979,60]
[380042115,1755499707524,-600.0,0.00038979,60]
[380042116,1755499707586,-207.4,0.00038979,60]
[380042117,1755499707655,-600.0,0.00038979,60]
[380042118,1755499707722,-600.0,0.00038979,60]
[380042119,1755499707789,-215.0738,0.00038979,60]
[380042120,1755499707853,-600.0,0.00038979,60]
[380042121,1755499707914,-160.0,0.00038979,60]
[380042122,1755499707978,-600.0,0.00038979,60]
[380042123,1755499708043,-600.0,0.00038979,60]
[380042124,1755499708108,-160.0,0.00038979,60]
[380042125,1755499708174,-223.0315306,0.00038979,60]
[380042126,1755499708240,-600.0,0.00038979,60]
[380042127,1755499708305,-160.0,0.00038979,60]
[380042128,1755499708370,-231.28369723,0.00038979,60]
[380042129,1755499708431,-600.0,0.00038979,60]
[380042130,1755499708494,-600.0,0.00038979,60]
[380042131,1755499708556,-160.0,0.00038979,60]
[380042132,1755499708620,-239.84119403,0.00038979,60]
[380042133,1755499708683,-600.0,0.00038979,60]
[380042134,1755499708749,-600.0,0.00038979,60]
[380042135,1755499708821,-160.0,0.00038979,60]
[380042136,1755499708888,-600.0,0.00038979,60]
[380042137,1755499708966,-600.0,0.00038979,60]
[380042138,1755499709036,-248.71531821,0.00038979,60]
[380042139,1755499709115,-160.0,0.00038979,60]
[380042140,1755499709180,-600.0,0.00038979,60]
[380042141,1755499709243,-600.0,0.00038979,60]
[380042142,1755499709307,-257.91778498,0.00038979,60]
[380042143,1755499709372,-600.0,0.00038979,60]
[380042144,1755499709433,-267.46074303,0.00038979,60]
[380042145,1755499709496,-600.0,0.00038979,60]
[380042146,1755499709556,-600.0,0.00038979,60]
[380042147,1755499709616,-277.35679052,0.00038979,60]
[380042148,1755499709678,-287.61899177,0.00038979,60]
[380042149,1755499709737,-298.26089446,0.00038979,60]
[380042150,1755499709798,-309.29654756,0.00038979,60]
[380042151,1755499709855,-320.74051982,0.00038979,60]
[380042152,1755499709913,-332.60791905,0.00038979,60]
[380042153,1755499709972,-344.91441206,0.00038979,60]
[380042154,1755499710033,-357.6762453,0.00038979,60]
[380042155,1755499710094,-370.91026638,0.00038979,60]
[380042156,1755499710155,-384.63394623,0.00038979,60]
[380042157,1755499710291,-398.86540225,0.00038979,60]
[380042158,1755499710357,-4878015.02804117,0.0003898,60]
[380042159,1755499731881,-150.0,0.00038446,120]
[380042160,1755499731951,-300.0,0.00038687,91]
[380042161,1755499732014,-174587.63702382,0.0003898,60]
[380042162,1755499732078,-72491.98777635,0.0003898,60]
[380042163,1755499732140,-2222.22,0.0003898,60]
[380042164,1755499732205,-2000.0,0.0003898,60]
[380042165,1755499732264,-439.22,0.0003898,60]
[380042166,1755499732323,-1000.0,0.00038999,120]
[380042167,1755499732383,-7622.73012839,0.00039,120]
[380042168,1755499732439,-2900.0,0.00039,90]
[380042169,1755499732493,-500.0,0.00039,120]
[380042170,1755499732548,-921.16640197,0.00039,120]
[380042171,1755499732601,-1398.8301111,0.00039,120]
[380042172,1755499732658,-20000.0,0.00039,120]
[380042173,1755499732718,-50000.0,0.00039,120]
[380042174,1755499732770,-287.0,0.00039,120]
[380042175,1755499732825,-2355.82203859,0.00039,120]
[380042176,1755499732881,-5000.0,0.00039,120]
[380042177,1755499732933,-2310.1484769,0.00039,120]
[380042178,1755499732987,-103061.27934646,0.00039,60]
[380042179,1755499733044,-21189.0,0.00039,120]
[380042180,1755499733104,-153.0,0.00039,120]
[380042181,1755499733170,-1690.77,0.00039049,120]
[380042182,1755499733231,-1709.05,0.00039056,120]
[380042183,1755499733295,-1690.77,0.00039149,120]
[380042184,1755499733358,-1709.06505179,0.00039156,120]
[380042185,1755499733420,-8865.59633214,0.000392,120]
[380042186,1755499733482,-1690.77,0.00039249,120]
[380042187,1755499733544,-1690.77,0.00039349,120]
[380042188,1755499733605,-161.0,0.0003937,120]
[380042189,1755499733670,-1690.77,0.00039449,120]
[380042190,1755499733732,-3000.0,0.000395,120]
[380042191,1755499733795,-1690.77,0.00039549,120]
[380042192,1755499733857,-1000.0,0.0003955,120]
[380042193,1755499733929,-1690.77,0.00039649,120]
[380042194,1755499733998,-150.0,0.000397,120]
[380042195,1755499734062,-150.0,0.000397,120]
[380042196,1755499734132,-150.0,0.000397,120]
[380042197,1755499734199,-150.0,0.000397,120]
[380042198,1755499734265,-150.0,0.000397,120]
[380042199,1755499734345,-150.0,0.000397,120]
[380042200,1755499734419,-150.0,0.000397,120]
[380042201,1755499734483,-150.0,0.000397,120]
[380042202,1755499734544,-150.0,0.000397,120]
[380042203,1755499734605,-150.0,0.000397,120]
[380042204,1755499734669,-150.0,0.000397,120]
[380042205,1755499734739,-150.0,0.000397,120]
[380042206,1755499734804,-150.0,0.000397,120]
[380042207,1755499734904,-150.0,0.000397,120]
[380042208,1755499734980,-150.0,0.000397,120]
[380042209,1755499735046,-150.0,0.000397,120]
[380042210,1755499735109,-150.0,0.000397,120]
[380042211,1755499735175,-150.0,0.000397,120]
[380042212,1755499735242,-150.0,0.000397,120]
[380042213,1755499735304,-150.0,0.000397,120]
[380042214,1755499735367,-150.0,0.000397,120]
[380042215,1755499735426,-150.0,0.000397,120]
[380042216,1755499735486,-150.0,0.000397,120]
[380042217,1755499735548,-150.0,0.000397,120]
[380042218,1755499735616,-150.0,0.000397,120]
[380042219,1755499735694,-150.0,0.000397,120]
[380042220,1755499735762,-150.0,0.000397,120]
[380042221,1755499735831,-225.05375424,0.000397,120]
[380042222,1755499735896,-346.04222933,0.000397,120]
[380042223,1755499735960,-1839.19853208,0.0003973,120]
[380042224,1755499736032,-1690.77,0.00039749,120]
[380042225,1755499736106,-163126.48346201,0.000398,120]
[380042226,1755499736179,-7310.42587904,0.000398,120]
[380042227,1755499736254,-152.0,0.000398,120]
[380042228,1755499736335,-1690.77,0.00039849,120]
[380042229,1755499736411,-685.77646708,0.000399,120]
[380042230,1755499736482,-153.0,0.000399,120]
[380042231,1755499736548,-52526.87569416,0.000399,120]
[380042232,1755499736616,-1690.77,0.00039949,120]
[380042233,1755499736685,-1271.01059,0.0004,120]
[380042234,1755499736757,-10000.0,0.0004,90]
[380042235,1755499736826,-271.83896109,0.0004,120]
[380042236,1755499736894,-1276.95448449,0.0004,120]
[380042237,1755499736963,-2578.02303622,0.0004,90]
[380042238,1755499737033,-2000.0,0.0004,120]
[380042239,1755499737103,-3100.0,0.0004,90]
[380042240,1755499737186,-10000.0,0.0004,120]
[380042241,1755499737257,-823.0,0.0004,120]
[380042242,1755499737327,-311.0,0.0004,120]
[380042243,1755499737408,-4179.47355574,0.0004,120]
[380042244,1755499737477,-510.95674624,0.0004,120]
[380042245,1755499737544,-200.0,0.0004,120]
[380042246,1755499737608,-427.86838895,0.0004,120]
[380042247,1755499737675,-928.0,0.0004,120]
[380042248,1755499737750,-9560.0,0.0004,120]
[380042249,1755499737833,-1000.0,0.0004,120]
[380042250,1755499737913,-515.12136613,0.0004,120]
[380042251,1755499737980,-25000.0,0.0004,120]
[380042252,1755499738313,-500.0,0.0004,120]
[380042253,1755499738380,-2000.0,0.0004,120]
[380042254,1755499738448,-843.20366966,0.0004,120]
[380042255,1755499738513,-843.20366966,0.0004,120]
[380042256,1755499738577,-246.00283874,0.0004,120]
[380042257,1755499738642,-911.5,0.0004,120]
[380042258,1755499738710,-200.0,0.0004,120]
[380042259,1755499738776,-1000.0,0.0004,120]
[380042260,1755499738856,-2232.01340214,0.0004,120]
[380042261,1755499738928,-63361.56529124,0.0004,120]
[380042262,1755499739002,-5000.0,0.0004,120]
[380042263,1755499739070,-5000.0,0.0004,60]
[380042264,1755499739141,-3005.8493,0.0004,120]
[380042265,1755499739209,-9811.62,0.0004,120]
[380042266,1755499739273,-796.34375812,0.0004,120]
[380042267,1755499739339,-739.0,0.0004,120]
[380042268,1755499739407,-161.13,0.0004,120]
[380042269,1755499739474,-873.48774061,0.0004,120]
[380042270,1755499739535,-2652.45951977,0.0004,120]
[380042271,1755499739597,-1000.0,0.0004,120]
[380042272,1755499739659,-288.0923,0.0004,120]
[380042273,1755499739724,-6572.98,0.0004,90]
[380042274,1755499739787,-921.94301074,0.0004,120]
[380042275,1755499739846,-1500.0,0.0004,120]
[380042276,1755499739910,-177.6,0.0004,120]
[380042277,1755499739974,-569.31,0.0004,120]
[380042278,1755499740039,-22500.0,0.0004,120]
[380042279,1755499740106,-12500.0,0.0004,120]
[380042280,1755499740175,-13620.02,0.0004,120]
[380042281,1755499740247,-194.64,0.0004,120]
[380042282,1755499740319,-712.57,0.0004,120]
[380042283,1755499740391,-862.96,0.0004,120]
[380042284,1755499740463,-197.26,0.0004,120]
[380042285,1755499740527,-172.58,0.0004,120]
[380042286,1755499740605,-229.5,0.0004,120]
[380042287,1755499740679,-721.62,0.0004,120]
[380042288,1755499740743,-238.44,0.0004,120]
[380042289,1755499740899,-1199.66,0.0004,120]
[380042290,1755499740961,-715.42,0.0004,120]
[380042291,1755499741030,-213.91,0.0004,120]
[380042292,1755499741094,-1269.22,0.0004,120]
[380042293,1755499741156,-843.78711038,0.0004,120]
[380042294,1755499741222,-3312.52,0.0004,120]
[380042295,1755499741284,-2000.0,0.0004,120]
[380042296,1755499741346,-1406.74,0.0004,120]
[380042297,1755499741410,-160.0,0.0004,120]
[380042298,1755499741473,-212.00699823,0.0004,120]
[380042299,1755499741532,-1690.77,0.00040049,120]
[380042300,1755499741598,-9729.84,0.00040125,120]
[380042301,1755499741658,-3287.73,0.00040125,120]
[380042302,1755499741724,-1690.77,0.00040149,120]
[380042303,1755499741785,-1690.77,0.00040249,120]
[380042304,1755499741847,-1690.77,0.00040349,120]
[380042305,1755499741912,-1690.77,0.00040449,120]
[380042306,1755499741982,-35910.14,0.000405,120]
[380042307,1755499742047,-1087.8086238,0.000405,120]
[380042308,1755499742112,-1750.0,0.000405,120]
[380042309,1755499742180,-257.81077946,0.00040548,120]
[380042310,1755499742246,-1691.56218981,0.00040549,120]
[380042311,1755499742308,-15913.41,0.000406,120]
[380042312,1755499742371,-152.0,0.000407,120]
[380042313,1755499742433,-3820.39304603,0.000408,60]
[380042314,1755499742496,-5000.0,0.000409,120]
[380042315,1755499742557,-153.0,0.000409,120]
[380042316,1755499742619,-150.0,0.00040918,120]
[380042317,1755499742681,-98244.2296128,0.00040999,120]
[380042318,1755499742738,-500.0,0.00041,120]
[380042319,1755499742798,-2583.61604076,0.00041,120]
[380042320,1755499742856,-250.0,0.00041,120]
[380042321,1755499742912,-500.0,0.00041,120]
[380042322,1755499742970,-2500.0,0.00041,120]
[380042323,1755499743032,-20000.0,0.00041,120]
[380042324,1755499743097,-15911.0,0.00041,120]
[380042325,1755499743165,-1029.0305307,0.00041,120]
[380042326,1755499743230,-2606.95,0.00041,120]
[380042327,1755499743295,-21189.0,0.00041,120]
[380042328,1755499743359,-553.007921,0.00041,120]
[380042329,1755499743429,-2000.0,0.00041,120]
[380042330,1755499743494,-5000.0,0.00041095,80]
[380042331,1755499743558,-580.87,0.00041095,120]
[380042332,1755499743620,-2000.0,0.00041096,120]
[380042333,1755499743685,-2000.0,0.00041096,120]
[380042334,1755499743747,-2000.0,0.00041096,120]
[380042335,1755499743808,-2000.0,0.00041096,120]
[380042336,1755499743869,-2000.0,0.00041096,120]
[380042337,1755499743933,-2000.0,0.00041096,120]
[380042338,1755499744002,-2000.0,0.00041096,120]
[380042339,1755499744069,-2000.0,0.00041096,120]
[380042340,1755499744141,-2000.0,0.00041096,120]
[380042341,1755499744213,-2000.0,0.00041096,120]
[380042342,1755499744282,-2000.0,0.00041096,120]
[380042343,1755499744345,-3183.12,0.00041096,120]
[380042344,1755499744411,-2000.0,0.00041096,120]
[380042345,1755499744477,-2000.0,0.00041096,120]
[380042346,1755499744538,-2000.0,0.00041096,120]
[380042347,1755499744598,-2000.0,0.00041096,120]
[380042348,1755499744659,-2000.0,0.00041096,120]
[380042349,1755499744722,-2000.0,0.00041096,120]
[380042350,1755499744779,-2000.0,0.00041096,120]
[380042351,1755499744838,-2000.0,0.00041096,120]
[380042352,1755499744894,-2000.0,0.00041096,120]
[380042353,1755499744954,-2000.0,0.00041096,120]
[380042354,1755499745012,-2000.0,0.00041096,120]
[380042355,1755499745080,-2000.0,0.00041096,120]
[380042356,1755499745144,-2000.0,0.00041096,120]
[380042357,1755499745207,-2016.0,0.00041096,120]
[380042358,1755499745267,-2000.0,0.00041096,120]
[380042359,1755499745328,-2000.0,0.00041096,120]
[380042360,1755499745395,-2000.0,0.00041096,120]
[380042361,1755499745467,-2000.0,0.00041096,120]
[380042362,1755499745543,-2000.0,0.00041096,120]
[380042363,1755499745611,-2000.0,0.00041096,120]
[380042364,1755499745669,-2000.0,0.00041096,120]
[380042365,1755499745731,-2019.0,0.00041096,120]
[380042366,1755499745786,-2000.0,0.00041096,120]
[380042367,1755499745844,-353.0,0.00041096,120]
[380042368,1755499746139,-2000.0,0.000411,120]
[380042369,1755499746203,-1000.0,0.00041154,60]
[380042370,1755499746266,-3023.33,0.00041234,120]
[380042371,1755499746334,-178.32359107,0.0004134,120]
[380042372,1755499746400,-200.0,0.00041449,120]
[380042373,1755499746467,-2250.0,0.000415,120]
[380042374,1755499746533,-152.0,0.000416,120]
[380042375,1755499746597,-2254301.33546658,0.0004161,120]
[380042376,1755499746661,-12088.28813638,0.000419,120]
[380042377,1755499746728,-153.0,0.000419,120]
[380042378,1755499746809,-10192.0,0.0004192,120]
[380042379,1755499746915,-22160.70234238,0.00042,60]
[380042380,1755499746978,-721.75218189,0.00042,120]
[380042381,1755499747042,-250.0,0.00042,120]
[380042382,1755499747108,-3200.0,0.00042,120]
[380042383,1755499747174,-1742.0,0.00042,120]
[380042384,1755499747242,-142287.04,0.00042,120]
[380042385,1755499747304,-2500.0,0.00042,120]
[380042386,1755499747372,-10233.35660629,0.00042,120]
[380042387,1755499747436,-9826.20589442,0.00042,80]
[380042388,1755499747498,-700.0,0.00042,120]
[380042389,1755499747559,-50000.0,0.00042,120]
[380042390,1755499747621,-150.36936715,0.00042,60]
[380042391,1755499747685,-5200.0,0.00042,120]
[380042392,1755499747747,-100000.01,0.00042,120]
[380042393,1755499747809,-1929.52848983,0.00042,120]
[380042394,1755499747871,-2500.0,0.00042,120]
[380042395,1755499747932,-503.53253504,0.00042121,120]
[380042396,1755499747991,-200.0,0.00042156,120]
[380042397,1755499748053,-1000.0,0.0004225,60]
[380042398,1755499748112,-54139.92452406,0.00042315,85]
[380042399,1755499748173,-165009.92754125,0.000424,120]
[380042400,1755499748234,-5000.0,0.00042465,82]
[380042401,1755499748293,-580.87,0.00042465,120]
[380042402,1755499748354,-500000.0,0.000425,60]
[380042403,1755499748415,-1703.24088765,0.000425,120]
[380042404,1755499748474,-623.95796156,0.000425,60]
[380042405,1755499748531,-152.0,0.000425,120]
[380042406,1755499748589,-2750.0,0.000425,120]
[380042407,1755499748648,-186.31,0.0004274,91]
[380042408,1755499748707,-194.0,0.0004276,60]
[380042409,1755499748765,-13349.2228705,0.000428,120]
[380042410,1755499748822,-153.0,0.000428,120]
[380042411,1755499748883,-200.0,0.00042863,120]
[380042412,1755499748950,-10000.0,0.000429,120]
[380042413,1755499749013,-289837.68841599,0.000429,120]
[380042414,1755499765979,-2000.0,0.0003898,60]